bitfinex/quotes_SOLUSD_20240808
["timestamp","ask_amount","ask_price","bid_price","bid_amount"]
[1723098766261,389.1,154.15,154.05,29.6181893]
[1723098766558,389.1,154.15,154.06,20.0]
[1723098766859,389.1,154.15,154.07,1.29794391]
[1723098767159,389.1,154.15,154.06,20.0]
[1723098767338,1.79243179,154.14,154.05,28.32]
[1723098767542,46.79243179,154.14,154.05,28.32]
[1723098767946,45.17,154.14,154.05,28.32]
[1723098768140,0.17,154.13,154.05,28.32]
[1723098769246,0.17,154.13,154.06,20.0]
[1723098770383,1.79267886,154.13,154.06,20.0]
[1723098770657,0.17,154.12,154.05,20.0]
[1723098771648,30.11292453,154.12,154.01,11.0692]
[1723098771852,28.32,154.1,154.01,11.0692]
[1723098772050,436.06324876,154.09,153.97,65.39626]
[1723098772253,28.32,154.08,153.97,39.3892]
[1723098772451,1.9634081,154.07,153.97,39.3892]
[1723098772637,0.17,154.07,153.97,39.3892]
[1723098772837,0.34,154.08,153.97,39.3892]
[1723098773258,389.1,154.09,154.01,28.32]
[1723098774165,389.1,154.09,153.97,11.0692]
[1723098774467,0.34,154.08,153.99,28.32]
[1723098774666,0.34,154.08,154.0,20.0]
[1723098775144,0.34,154.08,153.97,39.3892]
[1723098775344,46.96343172,154.08,153.97,39.3892]
[1723098775569,27.8819,154.07,153.97,39.3892]
[1723098775769,0.34,154.06,153.97,39.3892]
[1723098775955,29.50524513,154.07,153.97,39.3892]
[1723098776282,0.34,154.06,153.97,39.3892]
[1723098776442,27.8819,154.07,153.97,11.0692]
[1723098776750,45.34,154.06,153.97,11.0692]
[1723098777246,27.8819,154.07,153.97,11.0692]
[1723098777448,27.8819,154.07,153.98,1.19137561]
[1723098777641,0.34,154.06,153.97,12.2605756]
[1723098777953,0.34,154.06,153.97,11.0692]
[1723098778254,27.8819,154.07,153.98,48.32]
[1723098780985,27.8819,154.07,153.98,49.61860589]
[1723098781184,27.8819,154.07,154.0,28.32]
[1723098781464,389.1,154.08,154.02,28.32]
[1723098781641,389.1,154.08,154.02,29.61835043]
[1723098781846,0.64926633,154.03,154.02,28.32]
[1723098782046,0.64926633,154.03,154.02,48.32]
[1723098782461,0.64926633,154.03,154.02,93.32]
[1723098783058,0.64926633,154.03,154.02,48.32]
[1723098783365,0.64926633,154.03,153.98,28.32]
[1723098784056,0.64926633,154.03,153.97,11.0692]
[1723098784466,0.64926633,154.03,153.98,29.61871774]
[1723098784863,0.64926633,154.03,153.99,20.0]
[1723098785460,29.41756633,154.03,153.95,0.8149203]
[1723098785679,1.62353428,154.02,153.95,0.8149203]
[1723098785852,29.41756633,154.03,153.95,0.8149203]
[1723098787052,29.41756633,154.03,153.95,20.8149203]
[1723098787366,29.41756633,154.03,153.96,29.61868999]
[1723098787567,29.41756633,154.03,153.97,20.0]
[1723098787881,29.41756633,154.03,153.95,0.8149203]
[1723098788066,29.41756633,154.03,153.95,20.8149203]
[1723098788271,29.41756633,154.03,153.96,29.61883247]
[1723098788476,29.41756633,154.03,153.97,20.0]
[1723098789791,29.41756633,154.03,153.95,0.8149203]
[1723098789961,0.34,154.02,153.95,0.8149203]
[1723098790957,45.34,154.02,153.95,0.8149203]
[1723098791762,46.96393126,154.02,153.95,0.8149203]
[1723098791971,45.34,154.02,153.95,0.8149203]
[1723098792178,1.62394909,154.01,153.95,0.8149203]
[1723098792384,0.34,154.0,153.95,0.8149203]
[1723098793561,0.34,154.01,153.95,0.8149203]
[1723098796161,1.96407208,154.01,153.95,0.8149203]
[1723098796659,0.34,154.01,153.95,0.8149203]
[1723098796879,418.51756633,154.03,153.95,0.8149203]
[1723098797087,1.79381876,154.02,153.95,0.8149203]
[1723098797291,0.17,154.01,153.95,0.8149203]
[1723098798460,45.17,154.02,153.95,0.8149203]
[1723098798890,0.17,154.01,153.95,0.8149203]
[1723098799093,0.17,154.02,153.95,0.8149203]
[1723098799301,28.66,154.02,153.95,0.8149203]
[1723098799587,45.0,154.01,153.95,0.8149203]
[1723098799796,0.34,154.0,153.95,0.8149203]
[1723098799975,0.17,154.02,153.95,0.8149203]
[1723098800291,0.34,154.02,153.95,0.8149203]
[1723098800463,45.34,154.02,153.95,0.8149203]
[1723098800780,29.41756633,154.03,153.95,0.8149203]
[1723098801785,0.64926633,153.96,153.95,0.8149203]
[1723098826675,0.64926633,153.96,153.95,20.8149203]
[1723098827878,0.64926633,153.96,153.95,84.8749811]
[1723098828095,0.64926633,153.96,153.95,86.17359839]
[1723098828288,0.64926633,153.96,153.95,91.37667368]
[1723098829081,29.7479,154.08,153.95,96.84187368]
[1723098829280,29.7479,154.08,153.99,28.32]
[1723098829595,29.7479,154.08,154.0,20.0]
[1723098829791,389.1,154.09,154.01,73.49]
[1723098829998,29.7537,154.12,154.02,20.0]
[1723098830192,1.6227394,154.11,154.02,20.0]
[1723098830394,28.32,154.11,154.02,20.0]
[1723098830581,28.32,154.11,154.0,20.0]
[1723098831291,45.34,154.1,154.0,20.0]
[1723098833794,31.37676578,154.12,154.0,20.0]
[1723098833795,29.7537,154.12,154.03,28.32]
[1723098833991,29.7537,154.12,154.04,20.0]
[1723098834675,29.7537,154.12,154.04,21.2980457]
[1723098835585,29.7537,154.12,154.04,20.0]
[1723098835783,0.17,154.11,154.04,20.0]
[1723098836093,0.17,154.11,154.01,11.4032]
[1723098836094,75.28292483,154.11,154.01,11.4032]
[1723098837192,75.28292483,154.11,154.02,20.0]
[1723098841715,0.64926633,154.03,154.02,20.0]
[1723098841909,0.64926633,154.03,153.97,10.9652]
[1723098842986,0.64926633,154.03,153.99,28.32]
[1723098843206,0.64926633,154.03,154.01,28.32]
[1723098843597,0.64926633,154.03,154.02,28.1839]
[1723098843796,0.64926633,154.03,154.02,48.1839]
[1723098844088,28.0072,154.16,154.03,16.5604]
[1723098844321,28.0072,154.2,154.1,28.32]
[1723098844485,28.0072,154.2,154.11,20.0]
[1723098846700,1.62192424,154.19,154.11,20.0]
[1723098846886,1.62192424,154.19,154.09,20.0]
[1723098847083,29.94192424,154.19,154.09,20.0]
[1723098847318,45.17,154.18,154.07,20.0]
[1723098847813,0.17,154.17,154.08,28.32]
[1723098848107,0.17,154.17,154.09,20.0]
[1723098848314,389.1,154.19,154.1,28.32]
[1723098848610,389.1,154.19,154.11,20.0]
[1723098852203,389.1,154.19,154.12,39.9006]
[1723098853414,389.1,154.22,154.14,28.32]
[1723098853593,389.1,154.22,154.15,1.29718215]
[1723098853793,389.1,154.22,154.15,21.29718215]
[1723098854006,389.1,154.22,154.15,20.0]
[1723098854194,389.1,154.22,154.12,39.9006]
[1723098854395,1.62191777,154.21,154.12,11.5806]
[1723098854611,28.32,154.19,154.12,11.5806]
[1723098854795,1.62214468,154.18,154.12,11.5806]
[1723098854993,28.32,154.17,154.08,11.7042]
[1723098855204,45.17,154.16,154.08,11.7042]
[1723098855413,0.17,154.15,154.08,11.7042]
[1723098858022,30.11249972,154.15,154.04,11.5588]
[1723098858315,45.17,154.14,154.04,11.5588]
[1723098858518,1.79273236,154.13,154.04,11.5588]
[1723098858718,0.17,154.12,154.04,11.5588]
[1723098859598,28.32,154.11,154.01,28.5295]
[1723098859796,0.34,154.1,154.01,28.5295]
[1723098860814,0.34,154.1,154.02,20.0]
[1723098861619,1.96292683,154.1,154.02,20.0]
[1723098861818,0.64926633,154.03,154.02,20.0]
[1723098862123,0.64926633,154.03,154.0,11.8544]
[1723098862925,0.64926633,154.03,153.98,28.32]
[1723098863896,0.64926633,154.03,154.0,28.32]
[1723098864407,0.64926633,154.03,154.01,20.0]
[1723098865517,0.64926633,154.03,154.0,28.32]
[1723098865826,0.64926633,154.03,154.01,20.0]
[1723098866012,0.64926633,154.03,153.98,20.0]
[1723098866218,0.64926633,154.03,153.99,46.29841195]
[1723098866522,0.64926633,154.03,154.0,20.0]
[1723098868533,0.64926633,154.03,154.01,45.0]
[1723098868728,0.64926633,154.03,154.02,20.0]
[1723098869644,0.64926633,154.03,154.02,31.3567]
[1723098869811,0.64926633,154.03,154.02,76.5267]
[1723098870631,0.64926633,154.03,154.02,76.1867]
[1723098873418,0.64926633,154.03,154.02,112.9867]
[1723098873623,27.1014,154.14,154.02,119.48776305]
[1723098873929,27.1014,154.14,154.03,50.54307529]
[1723098874128,27.1014,154.14,154.04,51.04060098]
[1723098874327,27.1014,154.14,154.05,46.29771673]
[1723098874521,27.1014,154.14,154.06,20.0]
[1723098874940,0.34,154.13,154.06,20.0]
[1723098875551,1.96271747,154.13,154.02,11.1867]
[1723098875755,46.96271747,154.13,154.0,29.7428]
[1723098876045,46.96271747,154.13,153.98,16.73067529]
[1723098877242,40.5626,154.12,153.98,16.73067529]
[1723098877450,70.3605,154.1,153.95,0.8149203]
[1723098877646,13.06726252,154.09,153.95,0.8149203]
[1723098877951,45.34,154.08,153.95,0.8149203]
[1723098879268,0.34,154.08,153.95,0.8149203]
[1723098879548,0.34,154.08,153.96,1.63873619]
[1723098879730,0.34,154.08,153.96,21.63873619]
[1723098879928,11.4437,154.09,153.97,45.0]
[1723098880113,11.4437,154.09,153.98,21.63836814]
[1723098880317,27.4112,154.1,153.99,82.75827123]
[1723098880533,27.4112,154.1,154.0,20.17]
[1723098880745,27.4112,154.1,154.01,45.0]
[1723098880954,27.4112,154.1,154.02,20.0]
[1723098881751,0.64926633,154.03,154.02,20.0]
[1723098881920,0.64926633,154.03,153.99,20.0]
[1723098886253,28.83826633,154.03,153.95,20.8149203]
[1723098886444,28.83826633,154.03,153.95,0.8149203]
[1723098887971,0.17,154.02,153.95,0.8149203]
[1723098888259,28.83826633,154.03,153.95,0.8149203]
[1723098888863,30.46179239,154.03,153.95,0.8149203]
[1723098889244,30.46186814,154.03,153.95,0.8149203]
[1723098889656,28.83826633,154.03,153.95,0.8149203]
[1723098890462,28.83826633,154.03,153.96,0.17]
[1723098890463,0.64926633,154.03,153.96,0.17]
[1723098890663,0.64926633,154.03,153.96,65.34]
[1723098891246,0.64926633,154.03,153.96,65.0]
[1723098891445,29.0562,154.02,153.95,0.8149203]
[1723098893944,0.34,154.01,153.95,0.8149203]
[1723098895576,11.5457,154.0,153.95,0.8149203]
[1723098895779,0.34,153.99,153.95,0.8149203]
[1723098896244,29.1842,153.98,153.95,0.8149203]
[1723098901868,0.64926633,153.96,153.95,0.8149203]
[1723098912878,28.36666633,153.96,153.95,0.8149203]
[1723098915270,28.36666633,153.96,153.85,29.68954951]
[1723098915486,0.34,153.95,153.86,20.0]
[1723098916809,0.34,153.95,153.85,29.68954951]
[1723098920912,28.02666633,153.96,153.89,28.39]
[1723098921210,28.02666633,153.96,153.9,1.29937178]
[1723098921878,0.64926633,153.91,153.89,28.39]
[1723098922080,0.64926633,153.91,153.85,6.50257725]
[1723098922279,0.64926633,153.91,153.86,48.39]
[1723098924506,0.64926633,153.91,153.87,1.29957366]
[1723098924880,0.64926633,153.91,153.87,1.29923645]
[1723098925082,0.64926633,153.91,153.86,48.39]
[1723098926499,0.64926633,153.91,153.86,49.68957295]
[1723098927309,0.64926633,153.91,153.87,46.29957327]
[1723098928413,0.64926633,153.91,153.88,28.39]
[1723098928618,0.64926633,153.91,153.89,1.29931296]
[1723098928828,0.64926633,153.91,153.9,1.29931338]
[1723098929188,0.64926633,153.91,153.9,1.29928338]
[1723098930021,0.64926633,153.91,153.9,29.68928338]
[1723098930317,0.64926633,153.91,153.9,73.39]
[1723098931431,0.64926633,153.91,153.9,28.39]
[1723098931629,0.64926633,153.91,153.88,28.39]
[1723098931924,0.64926633,153.91,153.89,1.29941947]
[1723098932714,0.64926633,153.91,153.87,1.29942164]
[1723098932920,0.64926633,153.91,153.87,46.29942164]
[1723098933222,0.64926633,153.91,153.88,28.39]
[1723098933411,0.64926633,153.91,153.9,28.39]
[1723098934012,0.64926633,153.91,153.9,48.39]
[1723098934321,0.64926633,153.91,153.9,20.0]
[1723098934526,0.64926633,153.91,153.89,20.0]
[1723098934698,0.64926633,153.91,153.88,5.20307529]
[1723098935417,0.64926633,153.91,153.86,28.39]
[1723098935722,0.64926633,153.91,153.84,11.98617348]
[1723098935911,0.64926633,153.91,153.84,40.37617348]
[1723098936416,0.64926633,153.91,153.85,46.29957089]
[1723098937114,0.64926633,153.91,153.86,20.0]
[1723098937325,0.64926633,153.91,153.87,45.0]
[1723098941829,0.64926633,153.88,153.87,45.0]
[1723098953348,0.64926633,153.88,153.84,33.59307529]
[1723098953652,0.64926633,153.88,153.85,52.80960245]
[1723098953854,0.64926633,153.88,153.85,45.0]
[1723098957034,0.64926633,153.88,153.86,45.0]
[1723098957235,0.64926633,153.88,153.85,45.0]
[1723098957465,0.64926633,153.88,153.86,7.80965578]
[1723098957640,0.64926633,153.88,153.87,45.0]
[1723098958065,39.5216,153.97,153.87,79.65035774]
[1723098958365,39.5216,153.97,153.91,28.39]
[1723098958864,39.5216,153.97,153.89,28.39]
[1723098959036,39.5216,153.97,153.9,7.80728149]
[1723098959243,39.5216,153.97,153.89,1.29934197]
[1723098959550,39.5216,153.97,153.9,1.2993618]
[1723098960359,39.5216,153.97,153.89,45.0]
[1723098960856,0.17,153.96,153.87,48.39]
[1723098961033,0.34,153.96,153.88,7.80844201]
[1723098961350,39.5216,153.97,153.88,9.10754382]
[1723098961655,39.5216,153.97,153.87,48.39]
[1723098961961,0.64985704,153.89,153.88,7.80839791]
[1723098962460,0.64985704,153.89,153.88,7.80844753]
[1723098963360,0.64985704,153.89,153.88,9.10746666]
[1723098963547,0.64985704,153.89,153.88,46.29901913]
[1723098963736,0.64985704,153.89,153.88,54.10729635]
[1723098963943,0.64985704,153.89,153.88,45.0]
[1723098964149,0.64985704,153.89,153.88,52.80845363]
[1723098964635,0.64985704,153.89,153.85,28.39]
[1723098964840,0.64985704,153.89,153.88,28.39]
[1723098965167,0.64985704,153.89,153.88,82.49803367]
[1723098965372,0.64985704,153.89,153.88,82.49764187]
[1723098965540,27.3636,154.01,153.9,19.53]
[1723098965865,27.3636,154.09,154.0,28.39]
[1723098966051,27.3636,154.09,154.03,28.39]
[1723098966247,27.3636,154.09,154.05,28.39]
[1723098966450,27.3636,154.09,154.07,28.39]
[1723098966651,27.3636,154.09,154.03,28.39]
[1723098966959,1.62292004,154.08,153.97,28.39]
[1723098967163,55.7536,154.09,153.97,28.39]
[1723098967164,1.62344204,154.07,153.97,28.39]
[1723098967673,0.34,154.06,153.97,28.39]
[1723098967840,0.34,154.06,153.98,45.0]
[1723098968868,0.34,154.06,153.99,28.39]
[1723098969639,0.34,154.06,153.98,45.0]
[1723098969843,0.34,154.06,153.97,45.0]
[1723098970541,0.34,154.06,153.96,36.47]
[1723098970970,0.34,154.06,153.93,39.06255228]
[1723098971262,1.96347632,154.07,153.94,65.0]
[1723098972748,40.2578,154.06,153.92,5.60719982]
[1723098972948,46.96376767,154.05,153.92,5.60719982]
[1723098973153,1.62376868,154.04,153.92,5.60719982]
[1723098973362,0.34,154.03,153.92,5.60719982]
[1723098973568,0.17,154.03,153.93,1.29892705]
[1723098973750,0.17,154.03,153.93,37.76892705]
[1723098974160,0.17,154.03,153.94,45.0]
[1723098974641,1.79363175,154.05,153.93,36.47]
[1723098974642,0.17,154.04,153.93,36.47]
[1723098974843,0.34,154.05,153.94,45.0]
[1723098975045,46.96358028,154.05,153.93,36.47]
[1723098976246,0.34,154.05,153.94,45.0]
[1723098978172,0.34,154.05,153.94,37.0]
[1723098978641,11.9198,154.03,153.92,5.60719982]
[1723098978846,28.5707,154.01,153.9,36.47]
[1723098979047,0.34,154.0,153.9,36.47]
[1723098980455,0.34,154.0,153.91,1.29906292]
[1723098980657,28.5707,154.01,153.91,21.29906292]
[1723098980861,28.5707,154.01,153.93,36.47]
[1723098981057,28.5707,154.01,153.94,1.29880975]
[1723098981673,28.5707,154.01,153.94,46.29880975]
[1723098981875,0.64960375,153.95,153.94,46.29880975]
[1723098982484,0.64960375,153.95,153.94,66.63880975]
[1723098983675,27.94,154.06,153.94,86.16880975]
[1723098983985,27.94,154.1,154.04,36.47]
[1723098984179,27.94,154.1,154.05,46.29799349]
[1723098984396,27.94,154.1,154.04,36.47]
[1723098987078,27.94,154.1,154.0,5.60719982]
[1723098987490,27.94,154.1,154.01,1.29848317]
[1723098987667,27.94,154.1,154.02,1.29838706]
[1723098987864,27.94,154.1,154.03,1.29838709]
[1723098988063,27.94,154.1,154.0,5.60719982]
[1723098988270,1.62275667,154.09,154.04,50.0]
[1723098988471,1.79275667,154.09,154.04,50.0]
[1723098989196,0.17,154.08,154.04,50.0]
[1723098989371,0.34,154.09,154.04,50.0]
[1723098990679,27.94,154.1,154.04,50.0]
[1723098991778,27.94,154.1,154.04,78.35]
[1723098992198,27.94,154.1,154.06,28.35]
[1723098996698,27.94,154.1,154.04,50.0]
[1723098996895,27.94,154.1,154.04,78.35]
[1723098997105,29.56275066,154.1,154.04,50.0]
[1723098997288,0.34,154.09,154.04,50.0]
[1723098998189,27.94,154.1,154.04,78.35]
[1723099001704,0.34,154.09,154.04,50.0]
[1723099001887,0.64918204,154.05,154.04,50.0]
[1723099002093,0.64918204,154.05,154.04,78.35]
[1723099003183,0.64918204,154.05,154.04,123.35]
[1723099004083,0.64918204,154.05,154.04,123.69]
[1723099004295,0.64918204,154.05,154.04,143.69]
[1723099005189,0.64918204,154.05,154.04,143.35]
[1723099005513,0.64918204,154.05,154.04,143.69]
[1723099010196,389.1,154.13,154.04,143.69]
[1723099010406,389.1,154.13,154.11,28.35]
[1723099010613,40.0303,154.15,154.11,28.35]
[1723099010915,28.2233,154.15,154.13,28.35]
[1723099012637,27.1916,154.19,154.14,1.29711905]
[1723099012925,29.5349,154.23,154.17,28.35]
[1723099013097,29.5349,154.23,154.16,28.35]
[1723099013098,29.5349,154.23,154.21,28.35]
[1723099014301,30.0988,154.28,154.21,28.35]
[1723099014487,6.0,154.3,154.27,28.35]
[1723099014690,6.0,154.3,154.29,28.35]
[1723099015304,6.0,154.3,154.27,28.35]
[1723099016518,6.0,154.3,154.28,45.0]
[1723099017320,6.0,154.3,154.27,28.35]
[1723099019044,6.0,154.3,154.29,28.35]
[1723099020803,6.0,154.3,154.29,93.35]
[1723099021715,6.64813015,154.3,154.29,93.35]
[1723099021959,11.2772,154.42,154.29,93.52]
[1723099022101,29.1767,154.45,154.32,56.7]
[1723099022302,29.1767,154.45,154.4,28.35]
[1723099023031,29.1767,154.45,154.42,28.35]
[1723099023229,0.8149203,154.48,154.44,28.35]
[1723099023534,0.8149203,154.48,154.4,28.35]
[1723099023535,0.8149203,154.48,154.46,28.35]
[1723099023706,29.1093,154.55,154.47,45.0]
[1723099024028,29.1093,154.55,154.47,74.64395688]
[1723099024242,29.1093,154.55,154.49,28.35]
[1723099024805,29.1093,154.55,154.51,28.35]
[1723099025006,27.8184,154.6,154.53,28.35]
[1723099025202,27.8184,154.6,154.55,28.35]
[1723099025833,27.8184,154.6,154.5,36.21]
[1723099026140,27.8184,154.6,154.51,65.34]
[1723099026331,1.61737812,154.59,154.51,65.0]
[1723099027015,29.43607102,154.6,154.51,20.0]
[1723099027221,1.61794166,154.58,154.44,48.2724]
[1723099027435,0.17,154.57,154.44,48.2724]
[1723099027611,0.17,154.57,154.45,1.29408716]
[1723099027814,0.17,154.57,154.46,1.29400337]
[1723099028016,0.17,154.57,154.44,48.2724]
[1723099028322,1.95812251,154.57,154.44,48.2724]
[1723099028519,11.9882,154.56,154.44,12.0624]
[1723099028738,0.34,154.55,154.44,12.0624]
[1723099029054,0.34,154.55,154.45,1.293936]
[1723099029337,0.34,154.55,154.44,12.0624]
[1723099029338,11.9882,154.56,154.46,1.29385222]
[1723099029543,11.9882,154.56,154.45,20.0]
[1723099029747,11.9882,154.56,154.46,45.0]
[1723099029928,11.9882,154.56,154.47,20.0]
[1723099030125,11.9882,154.56,154.48,45.0]
[1723099030644,0.34,154.57,154.48,45.0]
[1723099030645,27.8184,154.6,154.48,45.0]
[1723099030817,27.8184,154.6,154.49,20.0]
[1723099031014,27.8184,154.6,154.5,45.0]
[1723099031233,27.8184,154.6,154.49,20.0]
[1723099032338,0.34,154.59,154.49,20.0]
[1723099034143,27.8184,154.6,154.49,20.0]
[1723099034346,27.8184,154.6,154.5,45.0]
[1723099034517,1.95769384,154.59,154.5,45.0]
[1723099034723,0.34,154.59,154.49,20.0]
[1723099034926,1.61779013,154.58,154.44,12.0624]
[1723099035146,1.9581367,154.57,154.44,12.0624]
[1723099035344,29.3655,154.55,154.4,52.93619982]
[1723099035651,11.5121,154.53,154.4,52.93619982]
[1723099035833,1.95844279,154.52,154.4,36.21]
[1723099036145,46.95844279,154.52,154.39,11.5121]
[1723099036354,45.34,154.52,154.39,11.5121]
[1723099037226,0.34,154.52,154.4,21.29109782]
[1723099037944,0.34,154.52,154.39,11.5121]
[1723099038151,28.7299,154.51,154.37,37.50489587]
[1723099038319,65.34,154.5,154.39,1.29472812]
[1723099038740,65.34,154.5,154.37,36.21]
[1723099039331,0.34,154.5,154.37,36.21]
[1723099039540,28.7299,154.51,154.4,36.21]
[1723099039731,28.7299,154.51,154.41,66.46450965]
[1723099039933,28.7299,154.51,154.42,0.17]
[1723099040524,28.7299,154.51,154.43,36.21]
[1723099040725,28.7299,154.51,154.44,45.0]
[1723099041030,28.7299,154.51,154.45,20.34]
[1723099041350,28.7299,154.51,154.46,45.0]
[1723099041717,0.64741681,154.47,154.46,45.0]
[1723099041948,0.64741681,154.47,154.46,101.55]
[1723099043146,0.64741681,154.47,154.46,101.21]
[1723099043353,0.64741681,154.47,154.46,65.0]
[1723099043561,0.64741681,154.47,154.46,65.34]
[1723099043930,0.64741681,154.47,154.46,59.34]
[1723099045526,0.64741681,154.47,154.46,95.55]
[1723099045730,0.64741681,154.47,154.46,115.08]
[1723099046248,0.64741681,154.47,154.46,123.13565375]
[1723099046858,0.64741681,154.47,154.46,103.60565375]
[1723099047556,0.64741681,154.47,154.46,95.55]
[1723099047745,0.64741681,154.47,154.43,36.21]
[1723099048149,0.64741681,154.47,154.43,37.43381618]
[1723099048551,0.64741681,154.47,154.43,51.09666975]
[1723099048753,0.64741681,154.47,154.43,70.62666975]
[1723099049245,0.64741681,154.47,154.44,20.17]
[1723099049447,0.64741681,154.47,154.46,36.21]
[1723099049645,0.64741681,154.47,154.46,101.55]
[1723099050852,0.64741681,154.47,154.44,8.05565375]
[1723099051031,0.64741681,154.47,154.43,41.81719982]
[1723099051230,0.64741681,154.47,154.43,43.1117458]
[1723099052356,0.64741681,154.47,154.44,65.34]
[1723099052539,0.64741681,154.47,154.45,1.29440384]
[1723099052860,0.64741681,154.47,154.44,65.34]
[1723099053055,0.64741681,154.47,154.44,45.0]
[1723099053262,0.64741681,154.47,154.43,41.81719982]
[1723099053449,0.64741681,154.47,154.4,36.21]
[1723099054562,0.64741681,154.47,154.4,37.50469048]
[1723099054763,0.64741681,154.47,154.41,65.0]
[1723099055147,28.7657,154.46,154.42,1.15864971]
[1723099055348,28.7657,154.46,154.43,1.15857468]
[1723099055657,28.7657,154.46,154.4,1.29481819]
[1723099055865,28.7657,154.46,154.37,2.59667954]
[1723099056038,28.7657,154.46,154.36,36.21]
[1723099057370,28.7657,154.46,154.36,37.50506911]
[1723099057544,28.7657,154.46,154.36,36.21]
[1723099058073,28.7657,154.46,154.37,20.0]
[1723099058248,28.7657,154.46,154.38,45.0]
[1723099058450,28.7657,154.46,154.39,20.0]
[1723099058657,28.7657,154.46,154.4,1.29512905]
[1723099058863,28.7657,154.46,154.4,46.29512905]
[1723099059647,28.7657,154.46,154.4,45.0]
[1723099060474,28.7657,154.46,154.4,46.29497868]
[1723099060773,28.7657,154.46,154.41,20.0]
[1723099060981,28.7657,154.46,154.42,45.0]
[1723099061143,28.7657,154.46,154.43,20.0]
[1723099061749,0.64741681,154.44,154.4,20.0]
[1723099062557,0.64741681,154.44,154.37,20.0]
[1723099063071,0.64741681,154.44,154.33,36.21]
[1723099063445,0.64741681,154.44,154.33,42.93621691]
[1723099063770,0.64741681,154.44,154.33,44.23148259]
[1723099063976,0.64741681,154.44,154.33,45.57425252]
[1723099064148,0.64741681,154.44,154.34,20.0]
[1723099064149,1.61913748,154.43,154.34,20.0]
[1723099064662,11.8611,154.41,154.34,20.0]
[1723099065659,29.62466702,154.4,154.29,8.05565375]
[1723099065853,28.0053,154.4,154.28,1.29567878]
[1723099066177,28.0053,154.4,154.28,8.0210543]
[1723099066684,28.0053,154.4,154.28,6.72537552]
[1723099067157,1.61963097,154.39,154.29,0.17]
[1723099067489,1.61963097,154.39,154.28,6.72537552]
[1723099067777,45.0,154.39,154.27,38.79771382]
[1723099067984,0.34,154.38,154.27,38.79771382]
[1723099068155,28.0053,154.4,154.28,1.29579013]
[1723099068353,1.78973654,154.39,154.27,38.79771382]
[1723099068553,28.0053,154.4,154.27,38.79771382]
[1723099068870,1.61957912,154.39,154.27,38.79771382]
[1723099069077,1.61957912,154.39,154.28,45.34]
[1723099069369,28.0053,154.4,154.29,1.46587594]
[1723099069578,28.0053,154.4,154.3,1.29570535]
[1723099069775,28.0053,154.4,154.3,46.29570535]
[1723099069955,28.0053,154.4,154.31,20.0]
[1723099070373,0.34,154.39,154.31,20.0]
[1723099070588,1.95984505,154.39,154.28,20.0]
[1723099070778,0.34,154.39,154.29,45.0]
[1723099071093,28.7691,154.38,154.27,36.21]
[1723099071260,0.34,154.37,154.24,36.21]
[1723099071599,1.95998097,154.37,154.24,42.93773452]
[1723099071964,1.95998097,154.37,154.24,44.23371722]
[1723099071965,0.34,154.37,154.24,44.23371722]
[1723099072283,0.34,154.37,154.25,45.34]
[1723099072662,0.34,154.37,154.26,20.0]
[1723099072861,0.34,154.37,154.27,45.0]
[1723099073069,28.7691,154.38,154.28,20.0]
[1723099073285,28.7691,154.38,154.29,46.29587266]
[1723099073496,28.7691,154.38,154.3,20.0]
[1723099074078,28.7691,154.38,154.31,1.29592296]
[1723099074387,28.7691,154.38,154.26,1.29587684]